bitfinex/quotes_BTCUSD_20220103
["timestamp","ask_amount","ask_price","bid_price","bid_amount"]
[1641241334252,0.1,46002.0,45991.0,0.051]
[1641241334458,0.26781244,45996.0,45991.0,0.051]
[1641241334854,0.1,45993.0,45991.0,0.051]
[1641241335052,2.02929766,45992.0,45991.0,0.051]
[1641241335253,1.993025,45992.0,45991.0,0.051]
[1641241335652,0.0276642,45993.0,45991.0,0.051]
[1641241335856,0.02642,45993.0,45991.0,0.051]
[1641241336254,0.89443679,45995.0,45991.0,0.051]
[1641241337215,0.89443679,45995.0,45991.0,0.12227264]
[1641241337416,0.81691459,45997.0,45991.0,0.12227264]
[1641241337819,0.81691459,45998.0,45995.0,0.2584276]
[1641241338423,0.89443679,46002.0,45996.0,0.28631879]
[1641241338622,0.89443679,46002.0,45997.0,0.42996094]
[1641241338817,0.89443679,46002.0,45998.0,0.08726375]
[1641241339018,0.28978587,46004.0,46000.0,0.054341]
[1641241339218,0.28978587,46004.0,46003.0,0.24835827]
[1641241339819,0.28978587,46004.0,46003.0,0.49263976]
[1641241340020,0.28978587,46004.0,46003.0,0.24835827]
[1641241340620,0.28978587,46004.0,46003.0,0.24861623]
[1641241341253,0.28978587,46004.0,46003.0,0.60317937]
[1641241342756,0.28978587,46004.0,46003.0,0.30295123]
[1641241342957,0.28978587,46004.0,46003.0,0.00025796]
[1641241342958,1.15478587,46004.0,46003.0,0.00025796]
[1641241343155,1.15478587,46004.0,46003.0,0.22025796]
[1641241343156,1.15972721,46004.0,46003.0,0.22025796]
[1641241343855,0.28972721,46004.0,46003.0,0.53092413]
[1641241345209,0.23872721,46004.0,46003.0,0.53092413]
[1641241345806,0.23372721,46004.0,46003.0,0.53092413]
[1641241346311,0.23372721,46004.0,46003.0,0.53221324]
[1641241346512,0.00834859,46008.0,46005.0,0.54212623]
[1641241346707,0.00834859,46008.0,46006.0,0.145256]
[1641241346909,0.81567534,46015.0,46007.0,1.64]
[1641241347108,1.05307413,46028.0,46012.0,0.09990266]
[1641241347308,0.42,46027.0,46026.0,0.00127217]
[1641241347507,0.42,46027.0,46026.0,0.10004747]
[1641241347707,1.05307413,46028.0,46026.0,0.10004747]
[1641241347708,0.95307413,46028.0,46026.0,0.10127482]
[1641241347908,0.001,46029.0,46027.0,0.37948295]
[1641241348367,0.001,46029.0,46027.0,0.27349057]
[1641241348558,0.00593874,46029.0,46028.0,0.08505328]
[1641241349062,0.00593874,46029.0,46012.0,0.00128848]
[1641241349258,0.00593874,46029.0,46016.0,0.0083482]
[1641241349459,0.0455475,46036.0,46016.0,0.0083482]
[1641241349460,0.35656362,46031.0,46021.0,0.39290119]
[1641241349660,0.04284397,46031.0,46021.0,0.27442918]
[1641241349859,0.04343326,46033.0,46021.0,0.27442918]
[1641241350160,0.04543387,46032.0,46026.0,0.09990266]
[1641241350359,0.34587267,46038.0,46021.0,0.27442918]
[1641241350557,0.34587267,46038.0,46021.0,0.73046885]
[1641241350558,1.2699407,46032.0,46021.0,0.73046885]
[1641241350757,0.03570969,46031.0,46021.0,0.73046885]
[1641241350958,0.34096157,46031.0,46021.0,0.73046885]
[1641241351159,0.03348431,46030.0,46021.0,0.27442918]
[1641241351359,0.04200363,46030.0,46021.0,0.27442918]
[1641241351661,0.04306036,46028.0,46021.0,0.27442918]
[1641241351961,0.04306036,46028.0,46021.0,0.41346918]
[1641241352228,0.25572828,46024.0,46021.0,0.13904]
[1641241352430,0.30104766,46027.0,46021.0,0.13904]
[1641241352730,0.04019121,46025.0,46021.0,0.13904]
[1641241352929,1.22733168,46027.0,46021.0,0.13904]
[1641241353128,1.22733168,46028.0,46021.0,0.13904]
[1641241353334,0.32277306,46026.0,46022.0,0.00024037]
[1641241353531,1.55010474,46026.0,46022.0,0.00024037]
[1641241353732,1.55010474,46026.0,46022.0,0.10014303]
[1641241353931,1.55010474,46026.0,46022.0,0.00024037]
[1641241354334,1.55010474,46026.0,46022.0,0.10014303]
[1641241354533,0.89443679,46027.0,46022.0,0.10014303]
[1641241354834,0.93169054,46027.0,46022.0,0.10014303]
[1641241355032,0.03614393,46025.0,46022.0,0.10014303]
[1641241355232,0.03614393,46025.0,46024.0,0.09337631]
[1641241355435,0.04619011,46025.0,46022.0,3.7e-07]
[1641241355634,0.04619011,46025.0,45985.0,0.5822]
[1641241355635,0.00120723,46022.0,45985.0,0.5822]
[1641241355870,0.054358,46012.0,45995.0,0.09990266]
[1641241356060,0.04540791,46010.0,45995.0,0.09990266]
[1641241356263,0.04540791,46010.0,45990.0,0.002]
[1641241356264,0.03917448,46005.0,45990.0,0.002]
[1641241356466,0.32013064,45993.0,45990.0,0.002]
[1641241356660,0.40151747,45992.0,45990.0,0.002]
[1641241356862,0.376295,45992.0,45990.0,0.002]
[1641241357259,0.353025,45992.0,45990.0,0.002]
[1641241357461,0.353025,45992.0,45990.0,0.010533]
[1641241357462,0.453025,45992.0,45990.0,0.010533]
[1641241357862,0.001266,45996.0,45990.0,0.010533]
[1641241358061,2.21863221,45991.0,45990.0,0.010533]
[1641241358261,2.21863221,45991.0,45990.0,0.11043566]
[1641241358464,0.57863221,45991.0,45990.0,0.3700317]
[1641241358962,0.57863221,45991.0,45990.0,0.010533]
[1641241359366,0.93165721,45991.0,45990.0,0.010533]
[1641241359613,0.353025,45991.0,45990.0,0.010533]
[1641241359813,1.993025,45991.0,45990.0,0.010533]
[1641241360916,2.08920627,45991.0,45971.0,0.00122]
[1641241361116,0.00120956,45976.0,45971.0,0.00122]
[1641241361317,0.353025,45975.0,45974.0,0.00011]
[1641241361514,0.733025,45975.0,45971.0,0.00122]
[1641241361719,0.09161157,45973.0,45969.0,0.00011]
[1641241361922,0.054413,45966.0,45956.0,0.00011]
[1641241362118,0.09417156,45964.0,45956.0,0.00011]
[1641241362315,0.44831029,45960.0,45949.0,0.00011]
[1641241362515,0.05442181,45956.0,45953.0,0.00011]
[1641241362715,0.352915,45954.0,45953.0,0.00011]
[1641241362916,0.28300697,45954.0,45953.0,0.00011]
[1641241363114,0.49235871,45954.0,45953.0,0.00011]
[1641241363364,0.81273971,45954.0,45946.0,0.00865558]
[1641241363562,0.00128375,45948.0,45941.0,0.00111]
[1641241363759,0.00128375,45948.0,45931.0,0.00133]
[1641241363760,1.63989,45943.0,45931.0,0.00133]
[1641241363961,0.353018,45939.0,45931.0,0.00133]
[1641241364160,1.64,45937.0,45931.0,0.00133]
[1641241364365,1.64,45937.0,45925.0,0.00044]
[1641241364366,1.993026,45933.0,45925.0,0.00044]
[1641241364563,1.64,45928.0,45922.0,0.00022]
[1641241364759,0.35303,45924.0,45921.0,0.00122]
[1641241364960,1.64,45922.0,45917.0,0.00011]
[1641241365161,0.353033,45918.0,45916.0,0.00011]
[1641241365365,1.32012765,45917.0,45894.0,0.16096131]
[1641241365560,1.69,45916.0,45900.0,0.43755339]
[1641241365760,1.69,45916.0,45894.0,0.156177]
[1641241365761,1.64,45899.0,45894.0,0.156177]
[1641241365960,0.353033,45898.0,45894.0,0.156177]
[1641241366160,0.408416,45898.0,45894.0,0.14785069]
[1641241366364,0.27733264,45895.0,45894.0,6.9e-07]
[1641241366659,0.27733264,45895.0,45890.0,0.19522]
[1641241366660,0.353033,45892.0,45890.0,0.19522]
[1641241366859,0.353033,45892.0,45871.0,0.001]
[1641241366860,0.352813,45888.0,45884.0,3.22e-06]
[1641241367116,0.352813,45888.0,45883.0,1.074e-05]
[1641241367117,2.90621309,45884.0,45883.0,1.074e-05]
[1641241367316,3.23733909,45884.0,45883.0,1.074e-05]
[1641241367513,2.88428309,45884.0,45883.0,1.074e-05]
[1641241367714,3.3854217,45884.0,45883.0,0.67455425]
[1641241367913,0.353056,45883.0,45860.0,0.34143409]
[1641241368113,0.04683367,45881.0,45861.0,0.32187497]
[1641241368316,3.3853117,45884.0,45870.0,0.1002398]
[1641241368513,0.00128211,45872.0,45871.0,0.321491]
[1641241368714,0.54,45883.0,45863.0,0.00957609]
[1641241368912,2.88417309,45884.0,45882.0,0.45508395]
[1641241369113,0.00832686,45888.0,45882.0,0.45508395]
[1641241369315,0.00832686,45888.0,45886.0,0.00011]
[1641241369512,0.00821686,45888.0,45886.0,0.00011]
[1641241369715,0.00821686,45888.0,45886.0,0.09135291]
[1641241369915,0.00810686,45888.0,45887.0,0.65324869]
[1641241370112,0.00810686,45888.0,45887.0,0.72833269]
[1641241370313,0.05,45899.0,45896.0,0.08342929]
[1641241370514,0.05,45899.0,45897.0,0.45162363]
[1641241370714,0.04989,45899.0,45898.0,0.075051]
[1641241370989,0.04989,45899.0,45894.0,0.30699778]
[1641241370990,0.97864709,45899.0,45894.0,0.30699778]
[1641241371191,0.00832665,45903.0,45894.0,0.30699778]
[1641241371392,0.00821665,45903.0,45897.0,0.008533]
[1641241371597,1.69410029,45898.0,45897.0,0.008533]
[1641241371789,2.14541629,45898.0,45897.0,0.008533]
[1641241371988,2.10007309,45898.0,45897.0,0.008533]
[1641241372188,0.46131621,45898.0,45897.0,0.008533]
[1641241372391,0.00864709,45898.0,45897.0,0.008533]
[1641241372589,0.00821665,45903.0,45897.0,0.16455445]
[1641241372794,0.00821665,45903.0,45902.0,1.43744623]
[1641241373189,0.00821665,45903.0,45902.0,1.54908723]
[1641241373690,0.00821665,45903.0,45902.0,1.77087325]
[1641241374098,0.00821665,45903.0,45902.0,0.78292034]
[1641241374290,0.13266805,45913.0,45902.0,0.78292034]
[1641241374493,0.00832659,45907.0,45903.0,0.17100705]
[1641241374712,0.00832659,45907.0,45906.0,1.705027]
[1641241374915,0.00832659,45907.0,45906.0,0.075027]
[1641241375314,0.00832659,45907.0,45902.0,0.00032308]
[1641241375514,1.73,45903.0,45902.0,0.00032308]
[1641241375715,2.08431294,45903.0,45902.0,0.00032308]
[1641241375915,0.32917694,45901.0,45897.0,5.608e-05]
[1641241376116,0.32917694,45901.0,45887.0,0.13]
[1641241376117,0.1,45898.0,45887.0,0.13]
[1641241376316,0.3625469,45897.0,45887.0,0.13]
[1641241376515,0.0396487,45900.0,45890.0,0.09115696]
[1641241376718,1.23169428,45903.0,45892.0,0.41994663]
[1641241376719,1.23043734,45903.0,45892.0,0.41994663]
[1641241377316,0.00832659,45907.0,45892.0,0.41994663]
[1641241377317,0.79302076,45895.0,45892.0,0.41994663]
[1641241377520,0.79302076,45895.0,45894.0,0.29850239]
[1641241377720,0.79302076,45895.0,45849.0,0.00011]
[1641241377721,0.35255901,45853.0,45849.0,0.00011]
[1641241377921,0.35255901,45853.0,45829.0,0.05011]
[1641241377922,0.09833851,45835.0,45829.0,0.05011]
[1641241378119,1.59126524,45835.0,45834.0,0.04714661]
[1641241378363,1.59126524,45835.0,45826.0,2.00619318]
[1641241378364,0.04714484,45828.0,45826.0,2.00619318]
[1641241378556,0.12077191,45826.0,45818.0,0.00321973]
[1641241378757,0.10106038,45804.0,45801.0,2.76457384]
[1641241378957,0.13929386,45819.0,45818.0,0.15102849]
[1641241379157,0.07283,45804.0,45802.0,0.22823]
[1641241379357,0.74591,45803.0,45802.0,0.22834]
[1641241379555,0.07134712,45804.0,45802.0,1.11834]
[1641241379756,0.05499354,45804.0,45803.0,2.11431307]
[1641241379956,0.04825,45805.0,45803.0,2.10431307]
[1641241380162,0.0012165,45811.0,45803.0,0.42588902]
[1641241380459,0.00108335,45815.0,45811.0,0.41990575]
[1641241380660,0.00108335,45815.0,45814.0,1.63022]
[1641241380859,0.00097335,45815.0,45811.0,0.41990575]
[1641241381057,0.00097335,45815.0,45814.0,0.00022]
[1641241381255,0.90076335,45815.0,45814.0,0.31907474]
[1641241381458,0.90076335,45815.0,45809.0,0.29057611]
[1641241381657,0.09978,45810.0,45801.0,0.008643]
[1641241381857,0.09967,45808.0,45801.0,0.008643]
[1641241382123,0.00122649,45804.0,45801.0,0.008643]
[1641241382323,0.00663376,45804.0,45801.0,0.008643]
[1641241382522,0.00652376,45804.0,45803.0,0.00033]
[1641241382725,1.03256805,45815.0,45803.0,0.538811]
[1641241382726,0.00123634,45814.0,45803.0,0.538811]
[1641241382923,0.00112634,45814.0,45813.0,0.0819806]
[1641241383123,0.8999,45815.0,45813.0,0.3002506]
[1641241383424,0.00625783,45819.0,45814.0,0.27249769]
[1641241383621,0.00625783,45819.0,45817.0,0.36654344]
[1641241383622,0.353087,45818.0,45817.0,0.36654344]
[1641241383822,0.09967,45818.0,45817.0,0.36654344]
[1641241384023,0.09967,45818.0,45814.0,0.21827]
[1641241384226,0.00125854,45815.0,45814.0,0.21827]
[1641241384422,0.00629982,45816.0,45814.0,0.21827]
[1641241384824,0.09967,45815.0,45812.0,0.00033]
[1641241385024,0.09967,45813.0,45811.0,0.00011]
[1641241385226,1.98424448,45812.0,45811.0,0.00011]
[1641241385428,0.01442,45816.0,45811.0,0.00011]
[1641241385429,0.06203,45829.0,45812.0,0.94]
[1641241385625,0.163772,45841.0,45812.0,0.94]
[1641241385626,0.001,45859.0,45830.0,0.39419987]
[1641241385865,0.60339049,45858.0,45857.0,0.08710861]
[1641241386066,0.09967,45908.0,45860.0,0.353108]
[1641241386265,2.18976751,45929.0,45873.0,0.76033]
[1641241386266,0.44045396,45874.0,45873.0,0.76033]
[1641241386465,1.50300921,45895.0,45875.0,1.64]
[1641241386668,0.09967,45891.0,45886.0,0.0012308]
[1641241386868,1.31792089,45896.0,45887.0,0.0366]
[1641241387068,1.2013814,45896.0,45891.0,0.0012377]
[1641241387268,1.2013814,45896.0,45892.0,0.0366]
[1641241387469,0.09467,45893.0,45886.0,0.0746208]
[1641241387669,0.09467,45887.0,45878.0,0.21907325]
[1641241387867,0.09467,45887.0,45871.0,0.320491]
[1641241387868,1.19312,45879.0,45876.0,0.25798571]
[1641241388077,0.09467,45877.0,45871.0,0.00125527]
[1641241388268,0.49323,45876.0,45871.0,0.00125527]
[1641241388471,0.20768,45875.0,45872.0,0.0366]
[1641241388669,0.21633,45874.0,45872.0,0.0366]
[1641241388870,0.320491,45895.0,45874.0,0.28335]
[1641241389070,0.09467,45892.0,45887.0,0.2506788]
[1641241389269,0.0082859,45882.0,45881.0,0.00124292]
[1641241389468,0.0082859,45882.0,45881.0,1.60095092]
[1641241389721,0.21633,45894.0,45881.0,1.60095092]
[1641241389722,0.21633,45894.0,45883.0,0.3171024]
[1641241389918,0.21133,45894.0,45893.0,0.32886727]
[1641241390118,0.306,45894.0,45893.0,0.0366]
[1641241390515,0.306,45894.0,45893.0,0.045133]
[1641241390717,0.21133,45894.0,45893.0,0.045133]
[1641241391122,0.001,45899.0,45893.0,0.04637856]
[1641241391315,0.001,45899.0,45898.0,0.001228]
[1641241391515,0.00129174,45923.0,45899.0,0.80610169]
[1641241391721,0.00129174,45923.0,45898.0,0.8524474]
[1641241391722,0.00129174,45923.0,45906.0,1.48]
[1641241391916,0.3212214,45925.0,45906.0,1.48]
[1641241391917,0.09467,45940.0,45914.0,0.00120917]
[1641241392115,0.04439591,45949.0,45914.0,0.00120917]
[1641241392116,0.001,45949.0,45922.0,0.054421]
[1641241392315,0.09467,45944.0,45927.0,0.24097801]
[1641241392517,0.001,45949.0,45932.0,0.00129369]
[1641241392718,0.001,45949.0,45937.0,0.04592895]
[1641241392719,0.09467,45938.0,45937.0,0.04592895]
[1641241392918,1.10967,45938.0,45937.0,0.50725195]
[1641241393115,1.10967,45938.0,45937.0,0.07227]
[1641241393116,1.42895033,45938.0,45937.0,0.07227]
[1641241393356,1.42895033,45938.0,45933.0,0.05]
[1641241393557,0.08967,45934.0,45933.0,0.05]
[1641241393754,0.08967,45934.0,45922.0,0.00125621]
[1641241393956,0.08967,45930.0,45928.0,0.24912889]
[1641241394157,0.08967,45930.0,45929.0,0.352453]
[1641241394557,0.00121771,45944.0,45929.0,0.41713084]
[1641241394558,0.08967,45941.0,45929.0,0.41713084]
[1641241394758,0.3212214,45952.0,45936.0,0.30812373]
[1641241394759,0.21633,45940.0,45936.0,0.30812373]
[1641241394959,0.21633,45940.0,45939.0,0.352453]
[1641241395161,0.00125107,45961.0,45939.0,1.54744491]
[1641241395460,0.20768,45949.0,45947.0,0.00126519]
[1641241395659,0.20768,45949.0,45948.0,0.0366]
[1641241396157,0.29735,45949.0,45948.0,0.38930705]
[1641241396361,0.08967,45949.0,45948.0,0.38930705]
[1641241396557,0.04989736,45974.0,45948.0,0.70726759]
[1641241396756,0.1,45964.0,45954.0,0.00126398]
[1641241396959,0.1,45960.0,45951.0,0.05]
[1641241397209,0.03336909,45955.0,45951.0,0.05]
[1641241397409,0.3250217,45954.0,45951.0,0.05]
[1641241397710,0.3268419,45953.0,45951.0,0.05]
[1641241397907,0.03742127,45953.0,45951.0,0.05]
[1641241398111,0.04310384,45953.0,45949.0,0.01]
[1641241398309,0.03531934,45953.0,45952.0,0.0099]
[1641241398513,0.04197812,45953.0,45952.0,0.362353]
[1641241398711,0.04176876,45953.0,45952.0,0.362353]
[1641241398909,0.56639802,45956.0,45952.0,0.0099]
[1641241399510,0.56500687,45956.0,45955.0,0.01]
[1641241399710,0.79395723,45959.0,45955.0,0.07874]
[1641241399914,0.79395723,45959.0,45958.0,0.01]
[1641241400112,0.59395723,45959.0,45958.0,0.01124859]
[1641241400414,0.001,45969.0,45958.0,0.01124859]
[1641241400610,0.001,45969.0,45968.0,0.45445344]
[1641241400869,0.001,45969.0,45968.0,1.19885931]
[1641241401070,0.001,45969.0,45968.0,1.20013459]
[1641241401670,0.001,45969.0,45968.0,1.21003459]
[1641241401869,0.00822035,45973.0,45970.0,0.054365]
[1641241402066,0.00822035,45973.0,45972.0,0.362453]
[1641241402267,0.00822035,45973.0,45972.0,0.352453]
[1641241402268,1.63822035,45973.0,45972.0,0.352453]
[1641241402569,0.00822035,45973.0,45972.0,0.352453]
[1641241402968,0.00822035,45973.0,45971.0,0.20878]
[1641241403166,0.00822035,45973.0,45972.0,0.352453]
[1641241403367,0.09945296,45977.0,45971.0,0.20878]
[1641241403867,0.13807003,45977.0,45971.0,0.20878]
[1641241404067,0.13807003,45977.0,45971.0,0.55395619]
[1641241404267,0.09945296,45977.0,45972.0,0.352453]
[1641241404470,0.04495928,45970.0,45952.0,0.00125004]
[1641241404722,0.09,45962.0,45948.0,0.00025405]
[1641241404925,0.09407528,45961.0,45951.0,0.05]
[1641241405124,0.00622251,45963.0,45951.0,0.05]
[1641241405422,0.09676043,45961.0,45951.0,0.05822047]
[1641241406121,0.10290305,45960.0,45951.0,0.05822047]
[1641241406326,0.09082696,45958.0,45951.0,0.05]
[1641241406522,0.00742441,45960.0,45951.0,0.05]
[1641241406726,0.1027055,45960.0,45951.0,0.05]
[1641241406924,0.09018893,45964.0,45956.0,0.41330785]
[1641241407125,0.05,45963.0,45952.0,0.00024933]
[1641241407326,0.10202825,45961.0,45952.0,0.00024933]
[1641241407528,0.42,45967.0,45954.0,0.1]
[1641241407724,0.42,45967.0,45952.0,0.00024933]
[1641241407725,0.42,45967.0,45958.0,0.24004506]
[1641241407926,0.79290937,45962.0,45958.0,0.24004506]
[1641241408367,0.79290937,45962.0,45961.0,0.095]
[1641241408572,1.21290937,45967.0,45961.0,0.095]
[1641241408772,1.21290937,45967.0,45966.0,0.095]
[1641241408973,0.79290937,45967.0,45966.0,0.40900607]
[1641241409169,0.79290937,45967.0,45966.0,0.095]
[1641241409373,0.78790937,45967.0,45966.0,0.36395833]
[1641241409571,0.352453,45971.0,45966.0,0.77114406]
[1641241409773,0.352453,45971.0,45970.0,0.0962821]
[1641241410572,0.352453,45971.0,45970.0,0.4487351]
[1641241411172,0.342453,45971.0,45970.0,0.4487351]
[1641241411578,0.342453,45971.0,45970.0,0.779363]
[1641241414215,0.342453,45971.0,45970.0,0.447453]
[1641241414408,0.31511564,45992.0,45974.0,0.352453]
[1641241414609,0.31511564,45996.0,45988.0,0.095]
[1641241415007,1.0164,45999.0,45988.0,0.28365895]
[1641241415209,1.0164,45999.0,45988.0,0.96622552]
[1641241415408,0.08045275,45996.0,45988.0,0.96622552]
[1641241415608,1.0164,45999.0,45988.0,1.32130106]
[1641241415874,0.001,45999.0,45989.0,1.22]
[1641241416073,0.001,45999.0,45998.0,0.095]
[1641241416275,0.001,45999.0,45998.0,1.21025926]
[1641241416675,0.001,45999.0,45998.0,0.91232735]
[1641241416876,0.001,45999.0,45998.0,0.7290304]
[1641241417075,1.421,45999.0,45998.0,0.63273325]
[1641241417274,1.421,45999.0,45998.0,0.18862025]
[1641241417474,0.001,45999.0,45998.0,0.18862025]
[1641241417674,0.001,45999.0,45998.0,0.63607325]
[1641241418074,1.22934281,45999.0,45998.0,0.63607325]
[1641241418275,1.22934281,45999.0,45998.0,0.28362025]
[1641241418480,1.22934281,45999.0,45998.0,0.27358531]
[1641241418676,0.001,45999.0,45998.0,0.17858531]
[1641241418975,0.095,45996.0,45994.0,0.00821982]
[1641241419177,0.095,45996.0,45994.0,9.82e-06]
[1641241419178,0.5984098,45995.0,45994.0,9.82e-06]
[1641241419479,0.03692369,45994.0,45989.0,0.05]
[1641241419720,0.31485873,45993.0,45969.0,0.00124987]
[1641241419924,0.08324282,45984.0,45978.0,0.05]
[1641241420122,0.23436746,45987.0,45978.0,0.05]
[1641241420322,0.03691564,45990.0,45978.0,0.05]
[1641241420525,0.03691564,45990.0,45978.0,0.145]
[1641241420723,0.278845,45989.0,45978.0,0.05]
[1641241420926,0.00122542,45993.0,45986.0,0.095]
[1641241421132,0.278845,45992.0,45986.0,0.095]
[1641241421328,0.03718363,45990.0,45986.0,0.095]
[1641241421523,0.0404879,45990.0,45986.0,0.095]
[1641241422523,0.08640555,45991.0,45986.0,0.095]
[1641241422724,0.08640555,45991.0,45982.0,0.26852022]
[1641241422923,0.08640555,45991.0,45987.0,0.095]
[1641241423124,0.0105539,45990.0,45987.0,0.095]
[1641241423670,0.4566,45995.0,45987.0,0.42382724]
[1641241423871,0.010556,45994.0,45987.0,0.42382724]
[1641241424073,0.010556,45994.0,45987.0,0.32882724]
[1641241424471,0.010556,45994.0,45987.0,0.42382724]
[1641241424678,0.09755353,45991.0,45988.0,0.05]
[1641241424874,0.04767201,45991.0,45988.0,0.05]
[1641241425073,0.40280619,45995.0,45990.0,0.095]
[1641241425276,0.40280619,45995.0,45992.0,0.095]
[1641241425277,0.36620619,45995.0,45992.0,0.095]
[1641241425475,0.36620619,45995.0,45988.0,0.05]
[1641241425674,0.36620619,45995.0,45991.0,0.20871]
[1641241425875,0.36620619,45995.0,45994.0,0.43591023]
[1641241426078,0.42154557,45995.0,45994.0,0.43591023]
[1641241426476,0.41151593,45995.0,45994.0,0.43591023]
[1641241426877,0.33542254,45995.0,45994.0,0.53091023]
[1641241427117,0.33542254,45995.0,45994.0,0.64460023]
[1641241427313,0.33542254,45995.0,45994.0,0.7408646]
[1641241427511,0.33542254,45995.0,45994.0,0.73960023]
[1641241427711,0.33042254,45995.0,45994.0,0.73960023]
[1641241428113,0.32542254,45995.0,45994.0,0.73960023]
[1641241428713,0.32542254,45995.0,45994.0,1.09159223]
[1641241429115,0.32542254,45995.0,45994.0,1.38988763]
[1641241429314,0.32542254,45995.0,45994.0,1.09159223]
[1641241429514,0.32542254,45995.0,45994.0,1.14594323]
[1641241430957,0.42,45995.0,45994.0,1.11003818]
[1641241431157,0.001,45999.0,45996.0,0.108675]
[1641241431358,0.001,45999.0,45998.0,0.44823215]
[1641241431560,0.001,46009.0,45998.0,0.65690215]
[1641241431760,0.001,46009.0,45999.0,0.351992]
[1641241431960,0.58246152,46000.0,45999.0,0.351992]
[1641241432158,0.14776552,46000.0,45999.0,0.64411829]
[1641241432361,0.14776552,46000.0,45999.0,0.69745529]
[1641241432562,0.0081736,46004.0,45999.0,0.69745529]
[1641241432758,0.0081736,46004.0,46003.0,0.55298373]
[1641241432958,0.4281736,46004.0,46003.0,0.446992]
[1641241433459,0.0081736,46004.0,46003.0,0.095]
[1641241433659,0.07743952,46006.0,46001.0,0.095]
[1641241434161,0.07743952,46006.0,45999.0,0.095]
[1641241434629,0.05435999,46005.0,45999.0,0.095]
[1641241434822,0.0366,46004.0,45998.0,0.47867]
[1641241435020,1.137,46003.0,45998.0,0.47867]
[1641241435225,1.1736,46003.0,45999.0,0.095]
[1641241435420,1.1736,46003.0,45998.0,0.47867]
[1641241435620,0.05436626,46002.0,45998.0,0.47867]
[1641241435822,1.137,46000.0,45998.0,0.46867]
[1641241436020,0.14673,45998.0,45994.0,0.00021447]
[1641241436221,0.14673,45998.0,45991.0,0.058534]
[1641241436222,0.005,45995.0,45991.0,0.03294447]
[1641241436422,0.1438,45994.0,45991.0,0.00684447]
[1641241436622,0.108734,45980.0,45969.0,0.054384]
[1641241436822,0.69829329,45967.0,45966.0,0.001101]
[1641241437023,0.76237329,45967.0,45966.0,0.001101]
[1641241437426,1.45819878,45967.0,45966.0,0.001101]
[1641241437620,1.56539878,45967.0,45966.0,0.001101]
[1641241437825,0.92288,45967.0,45951.0,0.00122]
[1641241438021,0.00124238,45958.0,45951.0,0.00122]
[1641241438222,0.1072,45956.0,45951.0,0.00122]
[1641241438472,0.04861997,45954.0,45951.0,0.00122]
[1641241438673,0.0366,45953.0,45951.0,0.00122]
[1641241438873,1.23824238,45958.0,45951.0,0.00122]
[1641241438874,0.00124238,45958.0,45952.0,0.3238471]
[1641241439073,0.34825744,45960.0,45957.0,0.095]
[1641241439074,0.1042,45960.0,45957.0,0.095]
[1641241439272,1.03126546,45967.0,45952.0,0.62755598]
[1641241439273,0.00817438,45961.0,45955.0,0.054403]
[1641241439472,0.00817438,45961.0,45956.0,0.095]
[1641241439673,0.80577051,45960.0,45956.0,0.095]
[1641241439872,0.80577051,45960.0,45956.0,0.09]
[1641241440074,0.80577051,45960.0,45959.0,0.09]
[1641241440272,0.91297051,45966.0,45959.0,0.09]
[1641241440474,0.91297051,45966.0,45965.0,0.09]
[1641241440873,0.5,45971.0,45965.0,2.03492425]
[1641241441074,1.19741921,45980.0,45970.0,0.09124988]
[1641241441075,1.13217252,45980.0,45970.0,0.09124988]
[1641241441273,1.13217252,45980.0,45979.0,0.35398955]
[1641241441471,0.108734,45980.0,45979.0,0.35398955]
[1641241441674,0.108734,45980.0,45979.0,0.35524336]
[1641241441871,0.108734,45980.0,45979.0,0.09125381]
[1641241442126,0.108734,45980.0,45979.0,0.09]
[1641241442317,0.108734,45980.0,45976.0,0.09]
[1641241442720,0.108734,45980.0,45966.0,0.00021778]
[1641241442918,0.108734,45980.0,45978.0,0.09]
[1641241443122,0.108734,45980.0,45979.0,0.45518311]
[1641241443318,0.68595863,45980.0,45979.0,0.45518311]
[1641241444119,0.108734,45980.0,45979.0,0.74361868]
[1641241444317,0.108734,45980.0,45979.0,1.40061689]
[1641241444520,0.00817393,45984.0,45980.0,0.1807096]
[1641241444721,0.00817393,45984.0,45983.0,0.44310854]
[1641241445321,0.00317393,45984.0,45983.0,0.441896]
[1641241446164,0.57222463,45988.0,45983.0,0.496262]
[1641241446362,0.57222463,45988.0,45984.0,0.054367]
[1641241446564,0.00817387,45988.0,45987.0,0.09]
[1641241446962,0.00817387,45988.0,45987.0,0.441896]
[1641241447363,0.29882839,46003.0,45987.0,0.44315799]
[1641241447566,0.14673,45998.0,45997.0,0.0912389]
[1641241447763,0.14673,45998.0,45997.0,0.44829734]
[1641241447962,0.14673,45998.0,45997.0,0.90348634]
[1641241448366,0.14673,45998.0,45997.0,1.25538234]
[1641241448564,0.13320699,46009.0,45997.0,1.30972634]
[1641241448764,0.001,46009.0,46008.0,0.09]
[1641241449367,0.4146,46009.0,46008.0,0.09]
[1641241449643,0.07266254,46008.0,45993.0,0.09]
[1641241450036,0.01,46006.0,45993.0,0.09]
[1641241450239,0.53626254,46008.0,45987.0,0.00120943]
[1641241450240,0.05436075,46001.0,45987.0,0.00120943]
[1641241450436,0.30567344,46007.0,46000.0,0.09]
[1641241450635,0.4136,46008.0,45994.0,0.1087]
[1641241450837,0.4136,46008.0,46006.0,0.07004017]
[1641241451236,0.4136,46008.0,46006.0,0.48755826]
[1641241451636,0.4136,46008.0,46006.0,0.54190226]
[1641241451836,0.4136,46008.0,46006.0,0.59624126]
[1641241452247,0.4136,46008.0,46007.0,0.351896]
[1641241452641,0.4086,46008.0,46007.0,0.35208024]
[1641241453241,0.001,46009.0,46007.0,0.35208024]
[1641241453467,0.001,46009.0,46008.0,0.00129127]
[1641241453674,0.001,46009.0,46008.0,0.35318727]
[1641241454069,0.00417344,46013.0,46010.0,0.108668]
[1641241454370,0.00417344,46013.0,46012.0,0.07131094]
[1641241454569,0.3667,46031.0,46013.0,0.351896]
[1641241454769,0.3667,46031.0,46012.0,0.13218094]
[1641241454770,0.4136,46023.0,46022.0,0.00127049]
[1641241454971,0.4136,46023.0,46022.0,0.07131066]
[1641241455270,0.4136,46023.0,46022.0,0.34943631]